[Event "Championnat du monde jeunes U12F"]
[Date "2024.11.22"]
[White "Radenkovic, Lena"]
[Black "Zavivaeva, Angelina"]
[WhiteElo "1675"]
[BlackElo "1499"]
[Round "7.33"]
[Result "0-1"]
[TimeControl "5400+30"]

1. Nf3 {[%clk 1:30:18]} 1... d5 {[%clk 1:30:55]} 2. g3 {[%clk 1:29:55]} 2... Nf6
{[%clk 1:31:20]} 3. Bg2 {[%clk 1:28:37]} 3... c6 {[%clk 1:31:45]} 4. O-O {[%clk
1:26:36]} 4... Bg4 {[%clk 1:32:10]} 5. d3 {[%clk 1:20:10]} 5... Nbd7 {[%clk
1:32:32]} 6. Nbd2 {[%clk 1:17:34]} 6... e5 {[%clk 1:32:47]} 7. Qe1 {[%clk
1:16:21]} 7... Be7 {[%clk 1:26:07]} 8. c3 {[%clk 1:13:35]} 8... O-O {[%clk
1:16:27]} 9. e4 {[%clk 1:09:33]} 9... Qc7 {[%clk 1:10:32]} 10. d4 {[%clk
1:04:31]} 10... Bxf3 {[%clk 0:54:01]} 11. Bxf3 {[%clk 1:04:23]} 11... dxe4
{[%clk 0:52:38]} 12. Nxe4 {[%clk 0:59:42]} 12... exd4 13. cxd4 {[%clk 0:58:13]}
13... Rfe8 {[%clk 0:50:06]} 14. Nxf6+ {[%clk 0:53:28]} 14... Bxf6 {[%clk
0:48:59]} 15. Qd1 {[%clk 0:52:35]} 15... Rad8 {[%clk 0:44:02]} 16. d5 {[%clk
0:41:37]} 16... Nb6 {[%clk 0:40:32]} 17. Bf4 {[%clk 0:36:59]} 17... Be5 {[%clk
0:37:20]} 18. Re1 {[%clk 0:34:21]} 18... Bxf4 {[%clk 0:35:35]} 19. Rxe8+ {[%clk
0:32:25]} 19... Rxe8 {[%clk 0:36:04]} 20. gxf4 {[%clk 0:32:26]} 20... cxd5
{[%clk 0:31:34]} 21. Qb3 {[%clk 0:25:48]} 21... Qxf4 {[%clk 0:28:58]} 22. Bxd5
{[%clk 0:24:41]} 22... Nxd5 {[%clk 0:18:05]} 23. Qxd5 {[%clk 0:24:45]} 23...
Qg4+ {[%clk 0:17:19]} 24. Kh1 {[%clk 0:23:22]} 24... Qe4+ {[%clk 0:16:26]} 25.
Qxe4 {[%clk 0:23:40]} 25... Rxe4 {[%clk 0:16:54]} 26. Rd1 {[%clk 0:23:37]} 26...
g6 {[%clk 0:15:53]} 27. Kg2 {[%clk 0:22:47]} 27... Re2 {[%clk 0:15:05]} 28. Rb1
{[%clk 0:22:36]} 28... Kg7 {[%clk 0:10:40]} 29. Kf1 {[%clk 0:21:36]} 29... Rc2
{[%clk 0:11:02]} 30. a3 {[%clk 0:20:24]} 30... b5 {[%clk 0:07:10]} 31. b4 {[%clk
0:19:18]} 31... Rc3 {[%clk 0:06:47]} 32. Ra1 {[%clk 0:18:34]} 32... a6 {[%clk
0:06:23]} 33. a4 {[%clk 0:18:01]} 33... Rb3 {[%clk 0:05:54]} 34. axb5 {[%clk
0:16:59]} 34... axb5 {[%clk 0:06:20]} 35. Ra6 {[%clk 0:17:07]} 35... Rxb4 {[%clk
0:06:38]} 36. Rb6 {[%clk 0:17:32]} 36... Rb1+ {[%clk 0:06:18]} 37. Ke2 {[%clk
0:17:53]} 37... b4 {[%clk 0:06:47]} 38. Kd3 {[%clk 0:17:41]} 38... Rb2 {[%clk
0:06:06]} 39. Ke3 {[%clk 0:17:42]} 39... b3 {[%clk 0:05:04]} 40. h4 {[%clk
0:16:41]} 40... f5 {[%clk 0:04:23]} 41. f3 {[%clk 0:15:58]} 41... Kh6 {[%clk
0:03:19]} 42. Kd3 {[%clk 0:15:12]} 42... Kh5 {[%clk 0:02:39]} 43. Kc3 {[%clk
0:14:43]} 43... Rf2 {[%clk 0:02:46]} 44. Kxb3 {[%clk 0:14:43]} 44... Rxf3+
{[%clk 0:03:04]} 45. Kc2 {[%clk 0:15:01]} 45... Kxh4 {[%clk 0:03:27]} 46. Rb7
{[%clk 0:15:14]} 46... h5 {[%clk 0:03:49]} 47. Kd2 {[%clk 0:15:02]} 47... g5
{[%clk 0:04:04]} 48. Ke2 {[%clk 0:15:18]} 48... Kg3 {[%clk 0:04:10]} 49. Rh7
{[%clk 0:15:11]} 49... h4 {[%clk 0:04:26]} 50. Rh6 {[%clk 0:15:01]} 50... g4
{[%clk 0:04:48]} 51. Rh8 {[%clk 0:15:18]} 51... h3 {[%clk 0:05:11]} 52. Rh5
{[%clk 0:15:34]} 52... h2 {[%clk 0:05:34]} 53. Rh8 {[%clk 0:15:53]} 53... Kg2
{[%clk 0:05:56]} 54. Rh5 {[%clk 0:16:12]} 54... h1=Q {[%clk 0:06:18]} 55. Rxh1
{[%clk 0:16:33]} 55... Kxh1 0-1

[Variant "Standard"]
[Site "Europe Echecs"]

[Event "Championnat du monde jeunes U12F"]
[Date "2024.11.22"]
[White "Potikha, Shelley"]
[Black "Wang, Tianmu"]
[WhiteElo "1561"]
[BlackElo "1640"]
[Round "7.34"]
[Result "1-0"]
[TimeControl "5400+30"]

1. e4 {[%clk 1:30:58]} 1... e5 {[%clk 1:30:55]} 2. Nf3 {[%clk 1:31:23]} 2... Nc6
{[%clk 1:31:20]} 3. Bc4 {[%clk 1:31:44]} 3... Bc5 {[%clk 1:31:18]} 4. b4 {[%clk
1:31:47]} 4... Bxb4 {[%clk 1:30:36]} 5. c3 {[%clk 1:31:51]} 5... Ba5 {[%clk
1:30:32]} 6. d4 {[%clk 1:31:57]} 6... exd4 {[%clk 1:30:03]} 7. Qb3 {[%clk
1:31:39]} 7... Qe7 {[%clk 1:26:20]} 8. O-O {[%clk 1:30:27]} 8... Bxc3 {[%clk
1:12:42]} 9. Nxc3 {[%clk 1:29:25]} 9... dxc3 {[%clk 1:13:03]} 10. Qxc3 {[%clk
1:28:52]} 10... Nf6 {[%clk 1:03:24]} 11. Ba3 {[%clk 1:14:03]} 11... d6 {[%clk
1:00:05]} 12. e5 {[%clk 1:08:32]} 12... Ne4 {[%clk 0:50:35]} 13. Qc2 {[%clk
1:05:47]} 13... Nc5 {[%clk 0:45:40]} 14. Rfe1 {[%clk 1:01:04]} 14... Be6 {[%clk
0:42:53]} 15. h4 {[%clk 0:58:37]} 15... h6 {[%clk 0:37:52]} 16. exd6 {[%clk
0:53:42]} 16... cxd6 {[%clk 0:37:43]} 17. Bxc5 {[%clk 0:53:50]} 17... dxc5
{[%clk 0:37:21]} 18. Bxe6 {[%clk 0:54:06]} 18... fxe6 {[%clk 0:36:53]} 19. Qg6+
{[%clk 0:54:28]} 19... Qf7 {[%clk 0:35:24]} 20. Rxe6+ {[%clk 0:52:45]} 20... Kf8
{[%clk 0:35:29]} 21. Qe4 {[%clk 0:49:39]} 21... Rd8 {[%clk 0:30:58]} 22. Re1
{[%clk 0:38:09]} 22... Kg8 {[%clk 0:24:26]} 23. Qc2 {[%clk 0:31:30]} 23... Nd4
{[%clk 0:21:29]} 24. Nxd4 {[%clk 0:31:01]} 24... cxd4 {[%clk 0:18:16]} 25. Re7
{[%clk 0:21:17]} 25... d3 {[%clk 0:15:50]} 26. Qc7 {[%clk 0:18:25]} 26... Qf8
{[%clk 0:14:30]} 27. Rxg7+ {[%clk 0:09:40]} 27... Qxg7 {[%clk 0:14:29]} 28.
Qxd8+ {[%clk 0:10:02]} 28... Kh7 {[%clk 0:11:53]} 29. Qxd3+ {[%clk 0:10:00]}
29... Kg8 {[%clk 0:11:59]} 30. Re8+ {[%clk 0:09:26]} 30... Kf7 {[%clk 0:12:15]}
31. Qd7+ {[%clk 0:09:35]} 31... Kg6 {[%clk 0:12:03]} 32. Re6+ {[%clk 0:09:30]}
32... Kh7 {[%clk 0:12:08]} 33. Re7 {[%clk 0:09:36]} 33... Qxe7 {[%clk 0:11:52]}
34. Qxe7+ {[%clk 0:09:58]} 34... Kg6 {[%clk 0:12:14]} 35. Qxb7 {[%clk 0:09:58]}
35... Re8 {[%clk 0:12:09]} 36. Qxa7 {[%clk 0:09:42]} 36... Re1+ {[%clk 0:12:02]}
37. Kh2 {[%clk 0:10:03]} 37... Re6 {[%clk 0:12:10]} 38. a4 {[%clk 0:10:10]}
38... Kf5 {[%clk 0:12:25]} 39. Qf7+ {[%clk 0:09:42]} 39... Ke5 {[%clk 0:12:46]}
40. Qh5+ {[%clk 0:09:47]} 40... Kd6 {[%clk 0:13:04]} 41. Qd1+ {[%clk 0:09:09]}
41... Ke7 {[%clk 0:13:17]} 42. a5 {[%clk 0:09:04]} 42... Ra6 {[%clk 0:13:21]}
43. Qe2+ {[%clk 0:09:25]} 43... Re6 {[%clk 0:13:44]} 44. Qxe6+ {[%clk 0:09:23]}
44... Kxe6 {[%clk 0:14:06]} 45. a6 {[%clk 0:09:50]} 45... Kd6 {[%clk 0:14:24]}
46. a7 {[%clk 0:10:11]} 46... Kc7 {[%clk 0:14:49]} 47. a8=Q {[%clk 0:10:28]}
47... h5 {[%clk 0:15:11]} 48. f4 {[%clk 0:10:21]} 48... Kd6 {[%clk 0:15:36]} 49.
Qf8+ {[%clk 0:10:42]} 49... Ke6 {[%clk 0:16:00]} 50. f5+ {[%clk 0:11:03]} 50...
Ke5 {[%clk 0:16:25]} 51. f6 {[%clk 0:11:26]} 51... Kf5 {[%clk 0:16:49]} 52. f7
{[%clk 0:11:39]} 52... Kg6 {[%clk 0:17:14]} 53. Qg8+ {[%clk 0:11:53]} 53... Kf5
{[%clk 0:17:26]} 54. f8=Q+ {[%clk 0:12:13]} 54... Ke5 {[%clk 0:17:51]} 55. Qe7+
{[%clk 0:12:20]} 55... Kd4 {[%clk 0:18:12]} 56. Qgd8+ {[%clk 0:12:35]} 56... Kc4
{[%clk 0:18:33]} 57. Qec7+ {[%clk 0:12:48]} 57... Kb4 {[%clk 0:18:54]} 58. Qdb8+
{[%clk 0:13:11]} 58... Ka4 {[%clk 0:19:19]} 59. Qca7# 1-0

[Variant "Standard"]
[Site "Europe Echecs"]

[Event "Championnat du monde jeunes U12F"]
[Date "2024.11.22"]
[White "Istratova, Nika"]
[Black "Bogomolnikova, Zlata"]
[WhiteElo "1473"]
[BlackElo "1628"]
[Round "7.35"]
[Result "0-1"]
[TimeControl "5400+30"]

1. e4 {[%clk 1:30:59]} 1... c5 {[%clk 1:30:52]} 2. Nf3 {[%clk 1:31:25]} 2... a6
{[%clk 1:31:14]} 3. d4 {[%clk 1:31:42]} 3... cxd4 {[%clk 1:31:35]} 4. Nxd4
{[%clk 1:32:04]} 4... Nf6 {[%clk 1:31:57]} 5. Nc3 {[%clk 1:32:23]} 5... e5
{[%clk 1:32:05]} 6. Nb3 {[%clk 1:32:42]} 6... Bb4 {[%clk 1:32:22]} 7. Bd3 {[%clk
1:31:37]} 7... d5 {[%clk 1:25:58]} 8. exd5 {[%clk 1:28:03]} 8... Nxd5 {[%clk
1:24:37]} 9. Bd2 {[%clk 1:23:47]} 9... Nxc3 {[%clk 1:22:51]} 10. bxc3 {[%clk
1:23:35]} 10... Bd6 {[%clk 1:22:59]} 11. O-O {[%clk 1:21:33]} 11... Nd7 {[%clk
1:21:56]} 12. Qe2 {[%clk 1:17:30]} 12... O-O {[%clk 1:21:01]} 13. a4 {[%clk
1:10:20]} 13... Nf6 {[%clk 1:20:57]} 14. Bg5 {[%clk 1:08:22]} 14... h6 {[%clk
1:18:08]} 15. Bh4 {[%clk 1:07:18]} 15... Re8 {[%clk 1:15:59]} 16. Nd2 {[%clk
1:03:37]} 16... g5 {[%clk 0:58:45]} 17. Bg3 {[%clk 1:03:48]} 17... Kg7 {[%clk
0:57:51]} 18. Nc4 {[%clk 0:59:59]} 18... Bc7 {[%clk 0:43:42]} 19. Qd1 {[%clk
0:43:42]} 19... e4 {[%clk 0:40:27]} 20. Be2 {[%clk 0:39:50]} 20... Bxg3 {[%clk
0:38:56]} 21. hxg3 {[%clk 0:39:26]} 21... Be6 {[%clk 0:31:03]} 22. Re1 {[%clk
0:29:01]} 22... Qc7 {[%clk 0:29:28]} 23. Qd4 {[%clk 0:24:03]} 23... Bxc4 {[%clk
0:25:41]} 24. Qxc4 {[%clk 0:19:35]} 24... Qxc4 {[%clk 0:25:57]} 25. Bxc4 {[%clk
0:20:02]} 25... Rac8 {[%clk 0:26:07]} 26. Bb3 {[%clk 0:19:16]} 26... Rxc3 {[%clk
0:26:09]} 27. Rad1 {[%clk 0:17:55]} 27... Rec8 {[%clk 0:24:56]} 28. Rd6 {[%clk
0:17:03]} 28... R3c5 {[%clk 0:23:55]} 29. Rb6 {[%clk 0:15:48]} 29... R8c7 {[%clk
0:22:23]} 30. Rd1 {[%clk 0:14:33]} 30... R5c6 {[%clk 0:19:22]} 31. Rd6 {[%clk
0:12:33]} 31... Rxb6 {[%clk 0:18:38]} 32. Rxb6 {[%clk 0:12:52]} 32... Rd7 {[%clk
0:18:56]} 33. Kf1 {[%clk 0:11:57]} 33... Ng4 {[%clk 0:08:35]} 34. Ke2 {[%clk
0:10:36]} 34... Nf6 {[%clk 0:06:54]} 35. Bc4 {[%clk 0:07:20]} 35... Ng4 {[%clk
0:05:35]} 36. Rb2 {[%clk 0:04:21]} 36... Ne5 {[%clk 0:04:43]} 37. Ba2 {[%clk
0:03:58]} 37... Nc6 {[%clk 0:02:18]} 38. Ke3 {[%clk 0:03:39]} 38... Kf6 {[%clk
0:01:59]} 39. c3 {[%clk 0:01:28]} 39... Ke5 {[%clk 0:01:38]} 40. f4+ {[%clk
0:00:40]} 40... gxf4+ {[%clk 0:01:58]} 41. gxf4+ {[%clk 0:01:09]} 41... Kf5
{[%clk 0:01:37]} 42. Bc4 {[%clk 0:00:45]} 42... Na5 {[%clk 0:00:39]} 43. Be2
{[%clk 0:00:49]} 43... Rc7 {[%clk 0:00:37]} 44. g4+ {[%clk 0:00:47]} 44... Ke6
{[%clk 0:00:34]} 45. Kxe4 {[%clk 0:00:35]} 45... Rxc3 {[%clk 0:00:42]} 46. Rb6+
{[%clk 0:00:57]} 46... Rc6 {[%clk 0:00:55]} 47. Rxc6+ {[%clk 0:00:44]} 47...
Nxc6 {[%clk 0:01:03]} 48. Bc4+ {[%clk 0:01:04]} 48... Ke7 {[%clk 0:00:44]} 49.
g5 {[%clk 0:00:39]} 49... hxg5 {[%clk 0:00:53]} 50. fxg5 {[%clk 0:01:02]} 50...
Nb4 {[%clk 0:00:38]} 51. Kf5 {[%clk 0:00:50]} 51... Nc6 {[%clk 0:00:36]} 52. g6
{[%clk 0:00:43]} 52... fxg6+ {[%clk 0:01:00]} 53. Kxg6 {[%clk 0:01:09]} 53...
Ne5+ {[%clk 0:01:26]} 54. Kf5 Nxc4 {[%clk 0:01:50]} 55. Ke4 {[%clk 0:01:39]}
55... Kd6 {[%clk 0:02:03]} 56. Kd4 {[%clk 0:01:48]} 56... b5 {[%clk 0:02:16]}
57. Kc3 {[%clk 0:01:32]} 57... Kc5 {[%clk 0:02:33]} 58. axb5 {[%clk 0:01:56]}
58... axb5 {[%clk 0:02:54]} 59. Kb3 {[%clk 0:02:02]} 59... b4 {[%clk 0:03:12]}
60. Kc2 {[%clk 0:00:59]} 60... Na5 {[%clk 0:03:26]} 61. Kb2 {[%clk 0:01:05]}
61... Kc4 {[%clk 0:03:47]} 62. Kc2 {[%clk 0:01:21]} 62... b3+ {[%clk 0:04:04]}
63. Kb2 {[%clk 0:01:24]} 63... Kb4 {[%clk 0:04:27]} 64. Kb1 {[%clk 0:01:26]}
64... Ka3 {[%clk 0:04:35]} 65. Ka1 {[%clk 0:01:55]} 65... b2+ {[%clk 0:04:51]}
66. Kb1 {[%clk 0:02:16]} 66... Nb7 {[%clk 0:05:09]} 67. Kc2 {[%clk 0:02:27]}
67... Ka2 {[%clk 0:05:34]} 0-1

[Variant "Standard"]
[Site "Europe Echecs"]

[Event "Championnat du monde jeunes U12F"]
[Date "2024.11.22"]
[White "Tsinjoviniavo, Aina Mahasambatra"]
[Black "Li, Yeeshuen"]
[WhiteElo "1716"]
[BlackElo "1546"]
[Round "7.36"]
[Result "1-0"]
[TimeControl "5400+30"]

1. e4 {[%clk 1:30:50]} 1... e5 {[%clk 1:30:54]} 2. Nf3 {[%clk 1:31:15]} 2... Nc6
{[%clk 1:31:17]} 3. d4 {[%clk 1:31:40]} 3... exd4 {[%clk 1:31:39]} 4. Nxd4
{[%clk 1:32:05]} 4... Bc5 {[%clk 1:32:00]} 5. Be3 {[%clk 1:32:23]} 5... Qf6
{[%clk 1:32:09]} 6. c3 {[%clk 1:32:36]} 6... d6 {[%clk 1:30:59]} 7. Bb5 {[%clk
1:31:48]} 7... Bd7 {[%clk 1:29:13]} 8. Qd3 {[%clk 1:29:48]} 8... Nge7 {[%clk
1:23:33]} 9. Nd2 {[%clk 1:26:24]} 9... a6 {[%clk 1:21:49]} 10. Nxc6 {[%clk
1:22:31]} 10... Bxe3 {[%clk 1:18:46]} 11. Qxe3 {[%clk 1:22:37]} 11... Nxc6
{[%clk 1:17:25]} 12. Be2 {[%clk 1:20:59]} 12... O-O-O {[%clk 1:13:17]} 13. O-O
{[%clk 1:20:07]} 13... Rde8 {[%clk 1:07:53]} 14. b4 {[%clk 1:15:27]} 14... d5
{[%clk 1:05:02]} 15. Rfc1 {[%clk 1:06:56]} 15... dxe4 {[%clk 1:01:03]} 16. a4
{[%clk 1:03:09]} 16... Nb8 {[%clk 0:57:53]} 17. c4 {[%clk 0:55:55]} 17... Bf5
{[%clk 0:51:14]} 18. c5 {[%clk 0:54:05]} 18... Re6 {[%clk 0:46:12]} 19. b5
{[%clk 0:51:05]} 19... Qh4 {[%clk 0:37:45]} 20. h3 {[%clk 0:48:13]} 20... g5
{[%clk 0:34:57]} 21. Nf1 {[%clk 0:36:10]} 21... h5 {[%clk 0:26:40]} 22. Qc3
{[%clk 0:33:45]} 22... Rhe8 {[%clk 0:21:56]} 23. Ne3 {[%clk 0:32:49]} 23... Bg6
{[%clk 0:20:30]} 24. g3 {[%clk 0:32:57]} 24... Qxh3 25. Bf1 {[%clk 0:33:20]}
25... g4 {[%clk 0:17:04]} 26. Bxh3 {[%clk 0:33:29]} 26... gxh3 {[%clk 0:17:25]}
27. Kh2 {[%clk 0:33:45]} 27... h4 {[%clk 0:17:08]} 28. gxh4 {[%clk 0:32:54]}
28... Bh5 {[%clk 0:17:14]} 29. Kxh3 {[%clk 0:32:13]} 29... Rg8 {[%clk 0:16:22]}
30. Rg1 {[%clk 0:32:24]} 30... Reg6 {[%clk 0:16:04]} 31. Rxg6 {[%clk 0:32:39]}
31... Rxg6 {[%clk 0:16:24]} 32. Qh8+ {[%clk 0:32:46]} 32... Kd7 {[%clk 0:16:43]}
33. Qxh5 {[%clk 0:33:01]} 33... Rg7 {[%clk 0:16:50]} 34. Rd1+ {[%clk 0:33:12]}
34... Ke8 {[%clk 0:17:07]} 35. Qh8+ {[%clk 0:33:11]} 35... Ke7 {[%clk 0:17:28]}
36. Qxg7 {[%clk 0:33:13]} 36... Ke6 {[%clk 0:17:38]} 37. Ng4 {[%clk 0:33:05]}
37... Nc6 {[%clk 0:17:56]} 38. Qf6# {[%clk 0:33:25]} 1-0

[Variant "Standard"]
[Site "Europe Echecs"]

[Event "Championnat du monde jeunes U12F"]
[Date "2024.11.22"]
[White "Yang, Hayeon"]
[Black "Ivanova, Gabriela"]
[WhiteElo "1482"]
[BlackElo "1680"]
[Round "7.37"]
[Result "1-0"]
[TimeControl "5400+30"]

1. d4 {[%clk 1:30:49]} 1... d5 {[%clk 1:30:42]} 2. Bf4 {[%clk 1:30:51]} 2... Nc6
{[%clk 1:29:09]} 3. e3 {[%clk 1:30:48]} 3... Nf6 {[%clk 1:29:05]} 4. c4 {[%clk
1:30:28]} 4... Bf5 {[%clk 1:18:45]} 5. Nc3 {[%clk 1:25:39]} 5... e6 {[%clk
1:15:14]} 6. cxd5 {[%clk 1:24:18]} 6... Nxd5 {[%clk 1:13:09]} 7. Nf3 {[%clk
1:22:22]} 7... Bd6 {[%clk 1:09:31]} 8. Bxd6 {[%clk 1:22:05]} 8... Qxd6 {[%clk
1:02:02]} 9. Bd3 {[%clk 1:19:51]} 9... Bxd3 {[%clk 0:59:31]} 10. Qxd3 {[%clk
1:19:40]} 10... Ndb4 {[%clk 0:56:46]} 11. Qd1 {[%clk 1:18:05]} 11... O-O {[%clk
0:52:33]} 12. O-O {[%clk 1:18:10]} 12... Rad8 {[%clk 0:50:07]} 13. Qb3 {[%clk
1:15:41]} 13... Nd5 {[%clk 0:44:47]} 14. Nxd5 {[%clk 1:14:23]} 14... Qxd5 {[%clk
0:43:04]} 15. Qxd5 {[%clk 1:11:01]} 15... Rxd5 {[%clk 0:43:18]} 16. e4 {[%clk
1:09:48]} 16... Rd7 {[%clk 0:43:24]} 17. Rac1 {[%clk 1:09:03]} 17... h6 {[%clk
0:34:14]} 18. h3 {[%clk 1:08:37]} 18... Nxd4 {[%clk 0:30:49]} 19. Nxd4 {[%clk
1:07:59]} 19... Rxd4 {[%clk 0:31:10]} 20. Rxc7 {[%clk 1:07:28]} 20... Rb8 {[%clk
0:30:16]} 21. f3 {[%clk 1:06:02]} 21... Ra4 {[%clk 0:27:40]} 22. a3 {[%clk
1:05:42]} 22... b5 {[%clk 0:26:59]} 23. Rd1 {[%clk 1:05:14]} 23... a5 {[%clk
0:26:26]} 24. Rdd7 {[%clk 1:04:51]} 24... Rc4 {[%clk 0:25:01]} 25. Ra7 {[%clk
1:04:47]} 25... a4 {[%clk 0:24:11]} 26. Rxf7 {[%clk 1:04:18]} 26... Rc2 {[%clk
0:22:12]} 27. Rxg7+ {[%clk 1:04:28]} 27... Kf8 {[%clk 0:22:20]} 28. Rh7 {[%clk
1:03:28]} 28... Kg8 {[%clk 0:22:11]} 29. Rag7+ {[%clk 1:03:41]} 29... Kf8 {[%clk
0:22:17]} 30. Rc7 {[%clk 1:03:58]} 30... Rxc7 {[%clk 0:22:12]} 31. Rxc7 {[%clk
1:04:22]} 31... Kg8 {[%clk 0:21:54]} 32. Kf2 {[%clk 1:04:35]} 32... b4 {[%clk
0:22:01]} 33. axb4 {[%clk 1:04:44]} 33... Rxb4 {[%clk 0:22:24]} 34. Ra7 {[%clk
1:04:59]} 34... Rxb2+ {[%clk 0:22:34]} 35. Kg3 {[%clk 1:05:08]} 35... Ra2 {[%clk
0:21:05]} 36. Kf4 {[%clk 1:04:57]} 36... a3 {[%clk 0:20:43]} 37. g4 {[%clk
1:05:01]} 37... Ra1 {[%clk 0:17:48]} 38. Ke5 {[%clk 1:05:10]} 38... a2 {[%clk
0:16:55]} 39. Kxe6 {[%clk 1:05:28]} 39... Rh1 {[%clk 0:16:22]} 40. Rxa2 {[%clk
1:05:45]} 40... Rxh3 {[%clk 0:16:40]} 41. Rf2 {[%clk 1:06:04]} 41... h5 {[%clk
0:15:46]} 42. gxh5 {[%clk 1:06:23]} 42... Rxh5 {[%clk 0:16:02]} 43. f4 {[%clk
1:06:23]} 43... Kf8 {[%clk 0:15:57]} 44. f5 {[%clk 1:06:32]} 44... Rh4 {[%clk
0:15:01]} 45. e5 {[%clk 1:06:48]} 45... Rh6+ {[%clk 0:14:58]} 46. f6 {[%clk
1:07:05]} 46... Ke8 {[%clk 0:14:22]} 47. Rg2 {[%clk 1:07:12]} 47... Kf8 {[%clk
0:14:38]} 48. Rf2 {[%clk 1:06:26]} 48... Ke8 {[%clk 0:14:45]} 49. Kf5 {[%clk
1:06:35]} 49... Rh5+ {[%clk 0:14:49]} 50. Ke6 {[%clk 1:06:53]} 50... Rh6 {[%clk
0:14:59]} 51. Kd6 {[%clk 1:07:14]} 51... Kd8 {[%clk 0:14:25]} 52. e6 {[%clk
1:07:18]} 52... Ke8 {[%clk 0:14:35]} 53. f7+ {[%clk 1:07:28]} 53... Kf8 {[%clk
0:14:44]} 54. Kd7 {[%clk 1:07:40]} 1-0

[Variant "Standard"]
[Site "Europe Echecs"]

[Event "Championnat du monde jeunes U12F"]
[Date "2024.11.22"]
[White "Laurincova, Timea"]
[Black "Busuioc, Amelie"]
[WhiteElo "1549"]
[BlackElo "1581"]
[Round "7.38"]
[Result "1-0"]
[TimeControl "5400+30"]

1. e4 {[%clk 1:30:57]} 1... c5 {[%clk 1:30:56]} 2. Nf3 {[%clk 1:31:23]} 2... Nc6
{[%clk 1:31:20]} 3. d4 {[%clk 1:31:49]} 3... cxd4 {[%clk 1:31:44]} 4. Nxd4
{[%clk 1:32:13]} 4... Nf6 {[%clk 1:32:02]} 5. Nc3 {[%clk 1:32:28]} 5... e5
{[%clk 1:32:24]} 6. Ndb5 {[%clk 1:32:52]} 6... d6 {[%clk 1:32:45]} 7. Bg5 {[%clk
1:33:11]} 7... a6 {[%clk 1:33:08]} 8. Na3 {[%clk 1:33:27]} 8... b5 {[%clk
1:33:25]} 9. Bxf6 {[%clk 1:33:49]} 9... Qxf6 {[%clk 1:33:40]} 10. Nd5 {[%clk
1:34:04]} 10... Qd8 {[%clk 1:33:11]} 11. c3 {[%clk 1:33:14]} 11... Be7 {[%clk
1:32:51]} 12. Nc2 {[%clk 1:32:11]} 12... O-O {[%clk 1:32:56]} 13. a4 {[%clk
1:31:21]} 13... Be6 {[%clk 1:32:32]} 14. Nxe7+ {[%clk 1:30:22]} 14... Qxe7
{[%clk 1:30:09]} 15. axb5 {[%clk 1:29:33]} 15... axb5 {[%clk 1:29:35]} 16. Bxb5
{[%clk 1:28:00]} 16... Na7 {[%clk 1:28:46]} 17. Bd3 {[%clk 1:27:12]} 17... Rfd8
{[%clk 1:27:42]} 18. O-O {[%clk 1:25:07]} 18... Qg5 {[%clk 1:17:34]} 19. Nb4
{[%clk 1:19:04]} 19... Bg4 {[%clk 1:15:58]} 20. Qc1 {[%clk 1:13:31]} 20... Qg6
{[%clk 1:14:34]} 21. Qe3 {[%clk 1:12:33]} 21... h6 {[%clk 1:06:43]} 22. Qg3
{[%clk 1:07:12]} 22... Bd7 {[%clk 1:03:36]} 23. Qxg6 {[%clk 1:04:55]} 23... fxg6
{[%clk 1:03:54]} 24. Bc4+ {[%clk 1:04:42]} 24... Kh8 {[%clk 1:02:25]} 25. Bd5
{[%clk 1:04:27]} 25... Bb5 {[%clk 0:57:50]} 26. Bxa8 {[%clk 1:02:50]} 26... Rxa8
{[%clk 0:57:44]} 27. Rfd1 {[%clk 1:02:53]} 27... Kh7 {[%clk 0:55:59]} 28. Rxd6
{[%clk 1:02:46]} 28... h5 {[%clk 0:54:57]} 29. h3 {[%clk 1:01:36]} 1-0

[Variant "Standard"]
[Site "Europe Echecs"]